[Event "26th OIBM 2023"]
[Site "Gmund am Tegernsee"]
[Date "2023.10.29"]
[Round "2.21"]
[White "Cordes, Hans-Joerg"]
[Black "Morawietz, Dieter"]
[Result "0-1"]
[ECO "E45"]
[WhiteElo "2146"]
[BlackElo "2378"]
[Annotator "ChessBase"]
[PlyCount "110"]
[EventDate "2023.10.04"]
[EventType "swiss"]
[EventCountry "GER"]
[SourceTitle "playchess.com"]
[Source "ChessBase"]
[SourceQuality "1"]
[TimeControl "40/5400+30:1800+30"]

1. d4 {[%emt 0:00:13]} Nf6 {[%emt 0:00:09]} 2. c4 {[%emt 0:00:22]} e6 {[%emt 0:00:07]} 3. Nc3 {[%emt 0:00:31]} Bb4 {[%emt 0:00:28]} 4. e3 {[%emt 0:00:34]} b6 {[%emt 0:02:15]} 5. Nge2 {[%emt 0:00:47]} Ba6 {[%emt 0:00:11]} 6. a3 {[%emt 0:00:30]} Be7 {[%emt 0:01:23]} 7. Nf4 {[%emt 0:00:42]} d5 {[%emt 0:02:53]} 8. cxd5 {[%emt 0:00:50]} Bxf1 {[%emt 0:00:05]} 9. Kxf1 {[%emt 0:00:08]} Nxd5 {[%emt 0:00:10]} 10. Ncxd5 {[%emt 0:00:46]} exd5 {[%emt 0:00:05]} 11. Qh5 {[%emt 0:00:18]} Bg5 {[%emt 0:01:49]} 12. Ne6 {[%emt 0:00:55]} g6 {[%emt 0:00:08]} 13. Qxg5 {[%emt 0:00:18]} fxe6 {[%emt 0:00:06]} 14. Qe5 {[%emt 0:01:32]} Kd7 {[%emt 0:03:03]} 15. Qg7+ {[%emt 0:01:02]} Kc8 {[%emt 0:02:50]} 16. Bd2 {[%emt 0:00:40]} Nd7 {[%emt 0:07:07]} 17. Rc1 {[%emt 0:03:27]} Qf6 {[%emt 0:03:18]} 18. Qxf6 {[%emt 0:01:26]} Nxf6 {[%emt 0:00:03]} 19. Ke2 {[%emt 0:01:28]} Kd7 {[%emt 0:00:22]} 20. Rc2 {[%emt 0:03:51]} Rac8 {[%emt 0:04:33]} 21. Rhc1 {[%emt 0:00:21]} Rhe8 {[%emt 0:12:39]} 22. f3 {[%emt 0:04:12]} c6 {[%emt 0:04:30]} 23. Bc3 {[%emt 0:05:18]} Ng8 {[%emt 0:08:17]} 24. b3 {[%emt 0:13:23]} Nh6 {[%emt 0:03:39]} 25. e4 {[%emt 0:10:59]} Nf7 {[%emt 0:00:48]} 26. e5 {[%emt 0:01:27]} c5 {[%emt 0:09:46]} 27. dxc5 {[%emt 0:01:44]} Rxc5 {[%emt 0:00:10]} 28. Bd4 {[%emt 0:00:12]} Rxc2+ {[%emt 0:00:39]} 29. Rxc2 {[%emt 0:00:05]} Nd8 {[%emt 0:02:12]} 30. Ke3 {[%emt 0:24:50]} Nc6 {[%emt 0:00:10]} 31. g4 {[%emt 0:02:18]} Rf8 {[%emt 0:03:06]} 32. Rd2 {[%emt 0:13:05]} g5 {[%emt 0:17:31]} 33. Rd3 {[%emt 0:00:54]} Ne7 {[%emt 0:05:08]} 34. Rc3 {[%emt 0:00:48]} Rf4 {[%emt 0:00:57]} 35. Rc2 {[%emt 0:03:06]} h5 {[%emt 0:02:52]} 36. h3 {[%emt 0:00:19]} Nc6 {[%emt 0:01:05]} 37. Rd2 {[%emt 0:01:28]} h4 {[%emt 0:00:19]} 38. Rd3 {[%emt 0:00:30]} Ke7 {[%emt 0:01:18]} 39. Bc3 {[%emt 0:01:59]} Rf7 {[%emt 0:01:01]} 40. Bd4 {[%emt 0:01:52]} Kd7 {[%emt 0:00:57]} 41. Rd1 {[%emt 0:09:30]} Rf4 {[%emt 0:09:01]} 42. Rd3 {[%emt 0:02:16]} Kc7 {[%emt 0:02:03]} 43. Bb2 {[%emt 0:01:10]} Kb7 {[%emt 0:01:00]} 44. Ke2 {[%emt 0:02:36]} Ka6 {[%emt 0:00:31]} 45. Bc3 {[%emt 0:03:29]} Rf7 {[%emt 0:22:16]} 46. Rd1 {[%emt 0:00:57]} Kb5 {[%emt 0:00:00]} 47. Rf1 {[%emt 0:03:40]} Kc5 {[%emt 0:00:00]} 48. Bd2 {[%emt 0:01:11]} Nd4+ {[%emt 0:00:00]} 49. Ke3 {[%emt 0:11:01]} Nxb3 {[%emt 0:00:00]} 50. Bb4+ {[%emt 0:01:03]} Kc4 {[%emt 0:00:00]} 51. f4 {[%emt 0:00:25]} d4+ {[%emt 0:00:00]} 52. Ke4 {[%emt 0:00:39]} a5 {[%emt 0:00:00]} 53. fxg5 {[%emt 0:00:49]} Rxf1 {[%emt 0:04:00]} 54. g6 {[%emt 0:00:05]} axb4 {[%emt 0:00:00]} 55. g7 {[%emt 0:00:10]} Nc5# {[%emt 0:05:00]} 0-1

[Event "26th OIBM 2023"]
[Site "Gmund am Tegernsee"]
[Date "2023.10.29"]
[Round "2.22"]
[White "Hess, Max"]
[Black "Manukonda Arun"]
[Result "1-0"]
[ECO "D30"]
[WhiteElo "2378"]
[BlackElo "2143"]
[Annotator "ChessBase"]
[PlyCount "99"]
[EventDate "2023.10.04"]
[EventType "swiss"]
[EventCountry "GER"]
[SourceTitle "playchess.com"]
[Source "ChessBase"]
[SourceQuality "1"]
[TimeControl "40/5400+30:1800+30"]

1. c4 {[%emt 0:00:03]} e6 {[%emt 0:01:22]} 2. g3 {[%emt 0:00:17]} d5 {[%emt 0:00:05]} 3. Bg2 {[%emt 0:00:05]} c5 {[%emt 0:00:20]} 4. cxd5 {[%emt 0:00:21]} exd5 {[%emt 0:00:03]} 5. Nf3 {[%emt 0:00:06]} Nf6 {[%emt 0:01:07]} 6. O-O {[%emt 0:00:26]} Nc6 {[%emt 0:00:41]} 7. d4 {[%emt 0:00:06]} Be7 {[%emt 0:01:06]} 8. dxc5 {[%emt 0:00:26]} Bxc5 {[%emt 0:00:34]} 9. a3 {[%emt 0:00:13]} Ne4 {[%emt 0:02:19]} 10. b4 {[%emt 0:00:42]} Be7 {[%emt 0:07:14]} 11. Nfd2 {[%emt 0:02:37]} Bf6 {[%emt 0:05:02]} 12. Ra2 {[%emt 0:00:38]} Be6 {[%emt 0:00:30]} 13. Nxe4 {[%emt 0:06:30]} dxe4 {[%emt 0:00:09]} 14. Rd2 {[%emt 0:00:17]} Qe7 {[%emt 0:00:20]} 15. Bxe4 {[%emt 0:04:30]} Bh3 {[%emt 0:02:02]} 16. Bxc6+ {[%emt 0:04:41]} bxc6 {[%emt 0:00:29]} 17. Qc2 {[%emt 0:00:21]} O-O {[%emt 0:03:41]} 18. Rfd1 {[%emt 0:02:39]} Rac8 {[%emt 0:10:43]} 19. Nc3 {[%emt 0:03:54]} Rfe8 {[%emt 0:07:09]} 20. Bb2 {[%emt 0:14:19]} Rcd8 {[%emt 0:07:40]} 21. Rxd8 {[%emt 0:07:01]} Rxd8 {[%emt 0:00:09]} 22. Rxd8+ {[%emt 0:07:26]} Qxd8 {[%emt 0:00:01]} 23. Qd1 {[%emt 0:01:45]} Qe7 {[%emt 0:01:07]} 24. Qd3 {[%emt 0:00:57]} h5 {[%emt 0:06:19]} 25. Nd1 {[%emt 0:05:16]} Bxb2 {[%emt 0:05:23]} 26. Nxb2 {[%emt 0:00:04]} c5 {[%emt 0:00:06]} 27. b5 {[%emt 0:18:36]} Qe5 {[%emt 0:03:47]} 28. Nd1 {[%emt 0:07:02]} Qa1 {[%emt 0:03:30]} 29. f3 {[%emt 0:00:15]} c4 {[%emt 0:01:05]} 30. Qd8+ {[%emt 0:00:30]} Kh7 {[%emt 0:00:01]} 31. Kf2 {[%emt 0:00:45]} Qxa3 {[%emt 0:00:43]} 32. Qd5 {[%emt 0:01:21]} Be6 {[%emt 0:00:54]} 33. Qxh5+ {[%emt 0:00:04]} Kg8 {[%emt 0:00:03]} 34. Qe5 {[%emt 0:00:18]} Qc1 {[%emt 0:02:25]} 35. Nc3 {[%emt 0:04:00]} Qh6 {[%emt 0:10:16]} 36. h4 {[%emt 0:00:38]} Qd2 {[%emt 0:05:12]} 37. Ne4 {[%emt 0:01:50]} Qd8 {[%emt 0:00:15]} 38. h5 {[%emt 0:04:10]} Qb6+ {[%emt 0:10:17]} 39. Kg2 {[%emt 0:00:06]} Bd7 {[%emt 0:01:00]} 40. Nc3 {[%emt 0:03:38]} f6 {[%emt 0:04:45]} 41. Qe7 {[%emt 0:04:20]} Qb7 {[%emt 0:07:58]} 42. g4 {[%emt 0:01:44]} Kh7 {[%emt 0:04:56]} 43. Ne4 {[%emt 0:02:49]} Bc8 {[%emt 0:05:16]} 44. Nxf6+ {[%emt 0:01:19]} Kh6 {[%emt 0:00:04]} 45. Qe3+ {[%emt 0:01:31]} g5 {[%emt 0:00:16]} 46. Qe8 {[%emt 0:03:57]} Qg7 {[%emt 0:04:38]} 47. Qxc8 {[%emt 0:01:13]} Qxf6 {[%emt 0:00:08]} 48. Qc6 {[%emt 0:00:32]} Kg7 {[%emt 0:00:43]} 49. Qxf6+ {[%emt 0:00:08]} Kxf6 {[%emt 0:00:03]} 50. Kf2 {[%emt 0:00:06]} 1-0

[Event "26th OIBM 2023"]
[Site "Gmund am Tegernsee"]
[Date "2023.10.29"]
[Round "2.23"]
[White "Manish Anto Cristiano F"]
[Black "Nagel, Bernhard"]
[Result "1-0"]
[ECO "C79"]
[WhiteElo "2368"]
[BlackElo "2142"]
[Annotator "ChessBase"]
[PlyCount "53"]
[EventDate "2023.10.04"]
[EventType "swiss"]
[EventCountry "GER"]
[SourceTitle "playchess.com"]
[Source "ChessBase"]
[SourceQuality "1"]
[TimeControl "40/5400+30:1800+30"]

1. e4 {[%emt 0:00:04]} e5 {[%emt 0:00:06]} 2. Nf3 {[%emt 0:00:05]} Nc6 {[%emt 0:00:11]} 3. Bb5 {[%emt 0:00:15]} a6 {[%emt 0:00:09]} 4. Ba4 {[%emt 0:00:05]} Nf6 {[%emt 0:00:09]} 5. O-O {[%emt 0:00:43]} d6 {[%emt 0:00:18]} 6. Re1 {[%emt 0:00:57]} Bd7 {[%emt 0:00:17]} 7. c4 {[%emt 0:00:31]} Be7 {[%emt 0:14:06]} 8. Nc3 {[%emt 0:00:21]} O-O {[%emt 0:00:33]} 9. Bxc6 {[%emt 0:00:15]} bxc6 {[%emt 0:01:33]} 10. d4 {[%emt 0:00:08]} exd4 {[%emt 0:00:45]} 11. Nxd4 {[%emt 0:00:09]} c5 {[%emt 0:05:00]} 12. Nf5 {[%emt 0:00:23]} Bxf5 {[%emt 0:01:42]} 13. exf5 {[%emt 0:00:08]} Re8 {[%emt 0:00:51]} 14. Bg5 {[%emt 0:08:16]} Nd7 {[%emt 0:05:38]} 15. Rxe7 {[%emt 0:00:56]} Rxe7 {[%emt 0:00:10]} 16. Nd5 {[%emt 0:00:14]} Re1+ {[%emt 0:03:48]} 17. Qxe1 {[%emt 0:00:07]} Qxg5 {[%emt 0:00:07]} 18. Nxc7 {[%emt 0:01:28]} Rc8 {[%emt 0:02:43]} 19. Nd5 {[%emt 0:01:42]} Kf8 {[%emt 0:03:27]} 20. f4 {[%emt 0:35:37]} Qd8 {[%emt 0:00:53]} 21. Rd1 {[%emt 0:00:13]} Nf6 {[%emt 0:05:35]} 22. Qd2 {[%emt 0:00:55]} Rb8 {[%emt 0:08:44]} 23. b3 {[%emt 0:48:28]} Nxd5 {[%emt 0:11:26]} 24. Qxd5 {[%emt 0:00:30]} Rb6 {[%emt 0:00:38]} 25. Qxc5 {[%emt 0:00:30]} Qb8 {[%emt 0:34:11]} 26. Qd4 {[%emt 0:00:30]} f6 {[%emt 0:00:30]} 27. c5 {[%emt 0:00:30]} 1-0

[Event "26th OIBM 2023"]
[Site "Gmund am Tegernsee"]
[Date "2023.10.29"]
[Round "2.24"]
[White "Gaerths, Ronny"]
[Black "Besou, Hussain"]
[Result "0-1"]
[ECO "D02"]
[WhiteElo "2139"]
[BlackElo "2351"]
[Annotator "ChessBase"]
[PlyCount "177"]
[EventDate "2023.10.04"]
[EventType "swiss"]
[EventCountry "GER"]
[SourceTitle "playchess.com"]
[Source "ChessBase"]
[SourceQuality "1"]
[TimeControl "40/5400+30:1800+30"]

1. d4 {[%emt 0:00:19]} Nf6 {[%emt 0:00:08]} 2. Nf3 {[%emt 0:01:07]} d5 {[%emt 0:00:12]} 3. Bf4 {[%emt 0:00:58]} c5 {[%emt 0:01:35]} 4. e3 {[%emt 0:01:00]} Nc6 {[%emt 0:00:50]} 5. Nbd2 {[%emt 0:01:13]} cxd4 {[%emt 0:06:49]} 6. exd4 {[%emt 0:01:03]} Bf5 {[%emt 0:00:17]} 7. c3 {[%emt 0:01:18]} e6 {[%emt 0:03:23]} 8. Qb3 {[%emt 0:03:21]} Qc8 {[%emt 0:05:24]} 9. h3 {[%emt 0:04:51]} h6 {[%emt 0:01:49]} 10. a4 {[%emt 0:04:28]} Be7 {[%emt 0:02:19]} 11. a5 {[%emt 0:04:18]} a6 {[%emt 0:00:58]} 12. Qa4 {[%emt 0:02:04]} O-O {[%emt 0:11:33]} 13. Be2 {[%emt 0:03:20]} Bh7 {[%emt 0:03:27]} 14. O-O {[%emt 0:03:35]} Ne4 {[%emt 0:17:10]} 15. Nxe4 {[%emt 0:06:28]} Bxe4 {[%emt 0:01:04]} 16. Ne5 {[%emt 0:04:57]} Nxe5 {[%emt 0:00:39]} 17. Bxe5 {[%emt 0:01:12]} Qd8 {[%emt 0:03:35]} 18. Rfe1 {[%emt 0:07:04]} Rc8 {[%emt 0:01:54]} 19. Bf1 {[%emt 0:04:43]} Bg6 {[%emt 0:04:00]} 20. Rac1 {[%emt 0:03:28]} Qe8 {[%emt 0:04:37]} 21. Qa2 {[%emt 0:05:22]} Qd7 {[%emt 0:00:40]} 22. Ra1 {[%emt 0:03:22]} Rfd8 {[%emt 0:03:39]} 23. Bg3 {[%emt 0:03:04]} Bf5 {[%emt 0:03:58]} 24. Be5 {[%emt 0:02:26]} Rc6 {[%emt 0:04:24]} 25. Qa4 {[%emt 0:02:57]} f6 {[%emt 0:02:09]} 26. Bg3 {[%emt 0:00:49]} g5 {[%emt 0:00:31]} 27. Qd1 {[%emt 0:01:45]} Bg6 {[%emt 0:03:01]} 28. Bd3 {[%emt 0:02:13]} Bf7 {[%emt 0:01:38]} 29. Bc2 {[%emt 0:03:44]} b5 {[%emt 0:01:01]} 30. axb6 {[%emt 0:01:25]} Rxb6 {[%emt 0:01:45]} 31. Qd3 {[%emt 0:03:46]} f5 {[%emt 0:00:30]} 32. b3 {[%emt 0:03:55]} Rc8 {[%emt 0:02:08]} 33. c4 {[%emt 0:02:26]} dxc4 {[%emt 0:00:50]} 34. bxc4 {[%emt 0:00:25]} Bf6 {[%emt 0:00:51]} 35. Be5 {[%emt 0:01:26]} Bxe5 {[%emt 0:01:21]} 36. dxe5 {[%emt 0:02:15]} Qxd3 {[%emt 0:00:24]} 37. Bxd3 {[%emt 0:00:08]} Rc5 {[%emt 0:00:26]} 38. Bf1 {[%emt 0:03:00]} f4 {[%emt 0:02:17]} 39. Red1 {[%emt 0:02:11]} Rxe5 {[%emt 0:01:50]} 40. Rd8+ {[%emt 0:00:45]} Kg7 {[%emt 0:00:04]} 41. Ra8 {[%emt 0:31:24]} Bg6 {[%emt 0:32:27]} 42. f3 {[%emt 0:00:00]} Kf6 {[%emt 0:00:00]} 43. R8xa6 {[%emt 0:00:00]} Rb2 {[%emt 0:00:00]} 44. R6a2 {[%emt 0:00:00]} Rb3 {[%emt 0:00:00]} 45. Ra3 {[%emt 0:00:00]} Rxa3 {[%emt 0:00:00]} 46. Rxa3 {[%emt 0:00:00]} Rc5 {[%emt 0:00:00]} 47. Ra8 {[%emt 0:00:00]} h5 {[%emt 0:00:00]} 48. Kf2 {[%emt 0:00:00]} Bf5 {[%emt 0:00:00]} 49. Ke1 {[%emt 0:00:00]} g4 {[%emt 0:00:00]} 50. hxg4 {[%emt 0:00:00]} hxg4 {[%emt 0:00:00]} 51. Kd2 {[%emt 0:00:00]} gxf3 {[%emt 0:00:00]} 52. gxf3 {[%emt 0:00:00]} Re5 {[%emt 0:00:00]} 53. Ra3 {[%emt 0:00:00]} Ke7 {[%emt 0:00:00]} 54. Rc3 {[%emt 0:00:00]} Kd6 {[%emt 0:00:00]} 55. Ra3 {[%emt 0:01:32]} Kc7 {[%emt 0:02:36]} 56. Rc3 {[%emt 0:01:19]} Kb6 {[%emt 0:00:54]} 57. Rb3+ {[%emt 0:00:45]} Kc6 {[%emt 0:00:19]} 58. Ra3 {[%emt 0:01:30]} Bg6 {[%emt 0:01:29]} 59. Ra6+ {[%emt 0:01:59]} Kd7 {[%emt 0:02:10]} 60. Ra7+ {[%emt 0:00:18]} Kd6 {[%emt 0:00:06]} 61. Ra6+ {[%emt 0:00:32]} Ke7 {[%emt 0:00:43]} 62. Ra7+ {[%emt 0:00:28]} Kf6 {[%emt 0:00:34]} 63. Ra3 {[%emt 0:00:55]} Be8 {[%emt 0:00:57]} 64. Rc3 {[%emt 0:00:45]} Bc6 {[%emt 0:00:44]} 65. Be2 {[%emt 0:00:49]} Kg5 {[%emt 0:01:50]} 66. Rc1 {[%emt 0:00:13]} Ra5 {[%emt 0:00:51]} 67. Rg1+ {[%emt 0:00:51]} Kf6 {[%emt 0:00:10]} 68. Rc1 {[%emt 0:01:00]} Ke5 {[%emt 0:00:12]} 69. Kc3 {[%emt 0:01:02]} Ra3+ {[%emt 0:00:13]} 70. Kb4 {[%emt 0:00:03]} Re3 {[%emt 0:00:13]} 71. Rc2 {[%emt 0:00:27]} Kd6 {[%emt 0:02:49]} 72. Ra2 {[%emt 0:00:28]} Bxf3 {[%emt 0:00:26]} 73. Bxf3 {[%emt 0:00:06]} Rxf3 {[%emt 0:00:05]} 74. Ra6+ {[%emt 0:00:40]} Ke5 {[%emt 0:00:07]} 75. c5 {[%emt 0:00:17]} Rf1 {[%emt 0:00:08]} 76. Kb5 {[%emt 0:00:57]} Rb1+ {[%emt 0:00:11]} 77. Kc6 {[%emt 0:00:15]} f3 {[%emt 0:00:45]} 78. Rb6 {[%emt 0:00:37]} Rc1 {[%emt 0:00:49]} 79. Rb2 {[%emt 0:00:17]} Ke4 {[%emt 0:01:30]} 80. Kd6 {[%emt 0:00:15]} e5 {[%emt 0:00:06]} 81. c6 {[%emt 0:00:19]} Kf4 {[%emt 0:00:21]} 82. c7 {[%emt 0:01:14]} e4 {[%emt 0:00:23]} 83. Rb8 {[%emt 0:00:49]} e3 {[%emt 0:00:18]} 84. c8=Q {[%emt 0:02:13]} Rxc8 {[%emt 0:00:10]} 85. Rxc8 {[%emt 0:00:00]} e2 {[%emt 0:00:09]} 86. Re8 {[%emt 0:00:00]} Kg3 {[%emt 0:00:33]} 87. Kd5 {[%emt 0:00:45]} Kf2 {[%emt 0:00:12]} 88. Kd4 {[%emt 0:00:37]} e1=Q {[%emt 0:00:07]} 89. Re2+ {[%emt 0:01:08]} 0-1

[Event "26th OIBM 2023"]
[Site "Gmund am Tegernsee"]
[Date "2023.10.29"]
[Round "2.25"]
[White "Weber, Ulrich"]
[Black "Willim, Michael"]
[Result "1-0"]
[ECO "A20"]
[WhiteElo "2349"]
[BlackElo "2138"]
[Annotator "ChessBase"]
[PlyCount "143"]
[EventDate "2023.10.04"]
[EventType "swiss"]
[EventCountry "GER"]
[SourceTitle "playchess.com"]
[Source "ChessBase"]
[SourceQuality "1"]
[TimeControl "40/5400+30:1800+30"]

1. Nf3 {[%emt 0:00:01]} d5 {[%emt 0:00:13]} 2. g3 {[%emt 0:00:06]} g6 {[%emt 0:00:21]} 3. c4 {[%emt 0:04:34]} dxc4 {[%emt 0:00:10]} 4. Na3 {[%emt 0:02:07]} Bg7 {[%emt 0:00:26]} 5. Bg2 {[%emt 0:00:32]} e5 {[%emt 0:02:12]} 6. O-O {[%emt 0:07:39]} Ne7 {[%emt 0:01:40]} 7. Nxc4 {[%emt 0:01:05]} Nbc6 {[%emt 0:00:17]} 8. d3 {[%emt 0:00:31]} O-O {[%emt 0:01:04]} 9. Bd2 {[%emt 0:02:58]} Re8 {[%emt 0:03:09]} 10. b4 {[%emt 0:21:30]} Nd5 {[%emt 0:11:00]} 11. Qb3 {[%emt 0:26:14]} Nd4 {[%emt 0:12:34]} 12. Nxd4 {[%emt 0:00:17]} exd4 {[%emt 0:00:07]} 13. Rfe1 {[%emt 0:03:18]} Be6 {[%emt 0:05:45]} 14. Qc2 {[%emt 0:00:52]} c6 {[%emt 0:01:08]} 15. Rac1 {[%emt 0:05:58]} Qd7 {[%emt 0:00:59]} 16. Na5 {[%emt 0:01:39]} Bg4 {[%emt 0:05:32]} 17. e4 {[%emt 0:04:01]} dxe3 {[%emt 0:01:07]} 18. fxe3 {[%emt 0:00:01]} Bh6 {[%emt 0:03:54]} 19. Bxd5 {[%emt 0:07:47]} Qxd5 {[%emt 0:03:35]} 20. e4 {[%emt 0:03:51]} Qd4+ {[%emt 0:04:44]} 21. Kg2 {[%emt 0:00:07]} Bxd2 {[%emt 0:02:15]} 22. Qxd2 {[%emt 0:00:01]} Rad8 {[%emt 0:01:48]} 23. h3 {[%emt 0:00:22]} Bc8 {[%emt 0:00:12]} 24. Rcd1 {[%emt 0:00:31]} Qd7 {[%emt 0:01:10]} 25. Qh6 {[%emt 0:00:15]} Qd4 {[%emt 0:06:25]} 26. Qd2 {[%emt 0:02:37]} Qd7 {[%emt 0:01:25]} 27. Qh6 {[%emt 0:00:05]} Qd4 {[%emt 0:00:09]} 28. Qd2 {[%emt 0:00:01]} Re5 {[%emt 0:00:11]} 29. Nb3 {[%emt 0:01:03]} Qd7 {[%emt 0:01:09]} 30. g4 {[%emt 0:00:26]} h5 {[%emt 0:02:05]} 31. d4 {[%emt 0:00:20]} Qe7 {[%emt 0:02:37]} 32. Qe3 {[%emt 0:04:41]} Rg5 {[%emt 0:01:19]} 33. Rg1 {[%emt 0:00:08]} hxg4 {[%emt 0:01:14]} 34. Kf2 {[%emt 0:00:23]} Rh5 {[%emt 0:08:27]} 35. hxg4 {[%emt 0:00:15]} Rh2+ {[%emt 0:00:07]} 36. Rg2 {[%emt 0:00:54]} Qh4+ {[%emt 0:13:53]} 37. Qg3 {[%emt 0:00:01]} Qxg3+ {[%emt 0:00:14]} 38. Kxg3 {[%emt 0:00:04]} Rxg2+ {[%emt 0:00:06]} 39. Kxg2 {[%emt 0:00:01]} Bxg4 {[%emt 0:00:09]} 40. Rd2 {[%emt 0:00:11]} b6 {[%emt 0:01:46]} 41. Kf2 {[%emt 0:04:34]} Be6 {[%emt 0:01:39]} 42. Nc1 {[%emt 0:01:51]} f5 {[%emt 0:00:21]} 43. exf5 {[%emt 0:03:25]} Bxf5 {[%emt 0:00:23]} 44. Ne2 {[%emt 0:00:28]} Kf7 {[%emt 0:01:45]} 45. a4 {[%emt 0:02:19]} Ke6 {[%emt 0:01:27]} 46. Nf4+ {[%emt 0:01:30]} Kd6 {[%emt 0:00:38]} 47. Kf3 {[%emt 0:02:08]} g5 {[%emt 0:00:43]} 48. Ng2 {[%emt 0:01:00]} Rh8 {[%emt 0:01:02]} 49. Ne3 {[%emt 0:14:33]} Rh3+ {[%emt 0:02:09]} 50. Kf2 {[%emt 0:00:07]} Rh2+ {[%emt 0:02:01]} 51. Ke1 {[%emt 0:00:01]} Rh1+ {[%emt 0:00:34]} 52. Kf2 {[%emt 0:00:11]} Be6 {[%emt 0:00:10]} 53. Nf1 {[%emt 0:03:26]} Bh3 {[%emt 0:05:51]} 54. Ng3 {[%emt 0:00:49]} Rh2+ {[%emt 0:01:00]} 55. Ke3 {[%emt 0:00:53]} Rxd2 {[%emt 0:00:17]} 56. Kxd2 {[%emt 0:00:03]} Kd5 {[%emt 0:00:41]} 57. Kc3 {[%emt 0:00:49]} a5 {[%emt 0:00:42]} 58. bxa5 {[%emt 0:00:07]} bxa5 {[%emt 0:00:05]} 59. Kd3 {[%emt 0:00:30]} Bc8 {[%emt 0:01:10]} 60. Ke3 {[%emt 0:00:15]} Kc4 {[%emt 0:05:22]} 61. Ne4 {[%emt 0:00:25]} Kb4 {[%emt 0:00:13]} 62. Nxg5 {[%emt 0:00:13]} Kxa4 {[%emt 0:00:06]} 63. Kd2 {[%emt 0:01:01]} Kb3 {[%emt 0:00:10]} 64. Kc1 {[%emt 0:02:47]} Bf5 {[%emt 0:01:00]} 65. Nf3 {[%emt 0:00:54]} a4 {[%emt 0:00:38]} 66. d5 {[%emt 0:00:52]} c5 {[%emt 0:00:22]} 67. d6 {[%emt 0:00:06]} a3 {[%emt 0:01:12]} 68. Nd2+ {[%emt 0:00:05]} Kb4 {[%emt 0:02:08]} 69. Ne4 {[%emt 0:00:50]} c4 {[%emt 0:00:39]} 70. Ng3 {[%emt 0:00:47]} Kb3 {[%emt 0:01:53]} 71. Nxf5 {[%emt 0:00:16]} Kc3 {[%emt 0:06:54]} 72. Kb1 {[%emt 0:00:20]} 1-0

[Event "26th OIBM 2023"]
[Site "Gmund am Tegernsee"]
[Date "2023.10.29"]
[Round "2.26"]
[White "Kaiser, Elmar"]
[Black "Zawadzka, Jolanta"]
[Result "0-1"]
[ECO "E61"]
[WhiteElo "2135"]
[BlackElo "2342"]
[Annotator "ChessBase"]
[PlyCount "118"]
[EventDate "2023.10.04"]
[EventType "swiss"]
[EventCountry "GER"]
[SourceTitle "playchess.com"]
[Source "ChessBase"]
[SourceQuality "1"]
[TimeControl "40/5400+30:1800+30"]

1. Nf3 {[%emt 0:00:46]} Nf6 {[%emt 0:00:07]} 2. c4 {[%emt 0:00:06]} g6 {[%emt 0:00:13]} 3. Nc3 {[%emt 0:00:17]} Bg7 {[%emt 0:00:25]} 4. d4 {[%emt 0:00:50]} d6 {[%emt 0:00:15]} 5. Bf4 {[%emt 0:02:54]} O-O {[%emt 0:00:23]} 6. e3 {[%emt 0:00:50]} Nbd7 {[%emt 0:00:13]} 7. h3 {[%emt 0:00:33]} b6 {[%emt 0:00:18]} 8. Be2 {[%emt 0:00:24]} Bb7 {[%emt 0:00:14]} 9. O-O {[%emt 0:01:35]} Ne4 {[%emt 0:00:20]} 10. Nxe4 {[%emt 0:00:46]} Bxe4 {[%emt 0:00:07]} 11. Bg3 {[%emt 0:01:11]} e5 {[%emt 0:05:57]} 12. Re1 {[%emt 0:05:38]} Qe7 {[%emt 0:07:41]} 13. Nd2 {[%emt 0:13:56]} Bb7 {[%emt 0:02:11]} 14. Nb1 {[%emt 0:00:47]} f5 {[%emt 0:09:38]} 15. Nc3 {[%emt 0:01:24]} Qf7 {[%emt 0:02:31]} 16. f4 {[%emt 0:09:40]} exd4 {[%emt 0:07:40]} 17. exd4 {[%emt 0:00:26]} Nf6 {[%emt 0:00:14]} 18. d5 {[%emt 0:03:50]} Ne4 {[%emt 0:15:07]} 19. Nxe4 {[%emt 0:00:25]} fxe4 {[%emt 0:00:04]} 20. Bg4 {[%emt 0:08:21]} Rae8 {[%emt 0:00:34]} 21. Rb1 {[%emt 0:11:27]} h5 {[%emt 0:11:09]} 22. Be6 {[%emt 0:02:29]} Rxe6 {[%emt 0:00:05]} 23. dxe6 {[%emt 0:00:02]} Qxe6 {[%emt 0:00:06]} 24. Bf2 {[%emt 0:03:01]} Qxc4 {[%emt 0:04:44]} 25. Rc1 {[%emt 0:08:50]} Qf7 {[%emt 0:00:11]} 26. Bd4 {[%emt 0:00:18]} Bh6 {[%emt 0:02:22]} 27. Be3 {[%emt 0:03:08]} d5 {[%emt 0:04:43]} 28. b4 {[%emt 0:00:24]} Ba6 {[%emt 0:01:54]} 29. g3 {[%emt 0:04:49]} Qd7 {[%emt 0:02:24]} 30. a4 {[%emt 0:03:31]} Bd3 {[%emt 0:01:20]} 31. Qb3 {[%emt 0:07:50]} Rf7 {[%emt 0:02:20]} 32. Bd4 {[%emt 0:05:25]} Qxh3 {[%emt 0:08:09]} 33. Re3 {[%emt 0:00:10]} Qf5 {[%emt 0:00:47]} 34. Be5 {[%emt 0:00:45]} Bc4 {[%emt 0:06:28]} 35. Rxc4 {[%emt 0:00:15]} dxc4 {[%emt 0:00:02]} 36. Qxc4 {[%emt 0:00:03]} Bg7 {[%emt 0:02:05]} 37. Rxe4 {[%emt 0:00:19]} Kh7 {[%emt 0:01:17]} 38. Re1 {[%emt 0:01:18]} Rd7 {[%emt 0:02:18]} 39. Bxg7 {[%emt 0:00:11]} Rxg7 {[%emt 0:00:10]} 40. Re8 {[%emt 0:01:04]} Qg4 {[%emt 0:01:05]} 41. Kf2 {[%emt 0:06:19]} Qd7 {[%emt 0:03:47]} 42. Qe4 {[%emt 0:00:08]} Qxa4 {[%emt 0:02:25]} 43. Qa8 {[%emt 0:01:38]} Qa2+ {[%emt 0:02:14]} 44. Kg1 {[%emt 0:00:29]} Qa1+ {[%emt 0:00:33]} 45. Kh2 {[%emt 0:01:09]} Rd7 {[%emt 0:01:30]} 46. Qc6 {[%emt 0:11:56]} Qa2+ {[%emt 0:05:55]} 47. Kh3 {[%emt 0:00:20]} Qf7 {[%emt 0:00:09]} 48. Re5 {[%emt 0:06:32]} Re7 {[%emt 0:02:53]} 49. Rd5 {[%emt 0:00:52]} a6 {[%emt 0:03:15]} 50. Kh2 {[%emt 0:02:45]} Re6 {[%emt 0:01:03]} 51. Qc4 {[%emt 0:00:46]} Re2+ {[%emt 0:03:31]} 52. Kh3 {[%emt 0:00:47]} Re7 {[%emt 0:01:20]} 53. Qd3 {[%emt 0:01:39]} Qe6+ {[%emt 0:02:01]} 54. f5 {[%emt 0:00:36]} gxf5 {[%emt 0:00:11]} 55. Rd4 {[%emt 0:00:57]} Kg6 {[%emt 0:01:53]} 56. Qxa6 {[%emt 0:01:01]} f4+ {[%emt 0:00:27]} 57. Kg2 {[%emt 0:00:05]} Qc6+ {[%emt 0:00:53]} 58. Kh2 {[%emt 0:00:13]} fxg3+ {[%emt 0:01:09]} 59. Kxg3 {[%emt 0:00:09]} Re3+ {[%emt 0:00:20]} 0-1